fUST/lending_fUST_20240728
["ID","MTS","AMOUNT","RATE_DAILY","PERIOD"]
[333475358,1722172232507,-520.25685212,0.00014,2]
[333475360,1722172232517,-194.46725522,0.00014,2]
[333475362,1722172232529,-257.16409311,0.00014,2]
[333475364,1722172232539,-750.0,0.00014247,2]
[333475366,1722172232548,-179.384597,0.00014283,2]
[333475368,1722172232559,-500.0,0.00014689,2]
[333475371,1722172232568,-500.0,0.00014689,2]
[333475373,1722172232578,-500.0,0.00014689,2]
[333475375,1722172232588,-584.0,0.00014689,2]
[333475377,1722172232598,-500.0,0.00014689,2]
[333475379,1722172232607,-500.0,0.00014689,2]
[333475381,1722172232617,-500.0,0.00014689,2]
[333475383,1722172232626,-500.0,0.00014689,2]
[333475385,1722172232635,-500.0,0.00014689,2]
[333475387,1722172232644,-500.0,0.00014689,2]
[333475389,1722172232654,-500.0,0.00014689,2]
[333475391,1722172232663,-538.83,0.0001469,2]
[333475393,1722172232673,-611.7,0.0001469,2]
[333475395,1722172232682,-500.0,0.0001469,2]
[333475397,1722172232691,-500.0,0.0001469,2]
[333475399,1722172232701,-542.61,0.0001469,2]
[333475401,1722172232710,-500.0,0.0001469,2]
[333475403,1722172232720,-500.0,0.0001469,2]
[333475405,1722172232730,-500.0,0.0001469,2]
[333475407,1722172232739,-500.0,0.0001469,2]
[333475409,1722172232749,-500.0,0.0001469,2]
[333475411,1722172232759,-500.0,0.0001469,2]
[333475413,1722172232769,-500.0,0.0001469,2]
[333475415,1722172232778,-597.39,0.0001469,2]
[333475417,1722172232787,-500.0,0.0001469,2]
[333475419,1722172232796,-500.0,0.0001469,2]
[333475421,1722172232806,-521.05207436,0.0001469,2]
[333475423,1722172232816,-500.0,0.0001469,2]
[333475425,1722172232826,-570.16,0.0001469,2]
[333475427,1722172232835,-565.03,0.0001469,2]
[333475429,1722172232844,-605.80698513,0.0001469,2]
[333475431,1722172232855,-502.75,0.0001469,2]
[333475433,1722172232864,-500.0,0.0001469,2]
[333475435,1722172232874,-500.0,0.0001469,2]
[333475437,1722172232883,-500.0,0.0001469,2]
[333475439,1722172232892,-575.55,0.0001469,2]
[333475441,1722172232902,-500.0,0.0001469,2]
[333475443,1722172232912,-500.0,0.0001469,2]
[333475446,1722172232923,-500.0,0.0001469,2]
[333475448,1722172232933,-500.0,0.0001469,2]
[333475450,1722172232942,-500.0,0.0001469,2]
[333475452,1722172232952,-571.03,0.0001469,2]
[333475454,1722172232962,-500.0,0.0001469,2]
[333475456,1722172232971,-406.20606496,0.0001469,2]
[333475614,1722172240563,-338.08930706,0.0001469,2]
[333475615,1722172240572,-500.0,0.0001469,2]
[333475616,1722172240582,-500.0,0.0001469,2]
[333475617,1722172240591,-500.0,0.0001469,2]
[333475618,1722172240601,-500.0,0.0001469,2]
[333475619,1722172240610,-500.0,0.0001469,2]
[333475620,1722172240619,-258.69613383,0.0001469,2]
[333475621,1722172240629,-93.79393504,0.0001469,2]
[333475622,1722172240639,-365.91731003,0.0001469,2]
[333475623,1722172240648,-500.0,0.0001469,2]
[333475624,1722172240657,-500.0,0.0001469,2]
[333475625,1722172240667,-500.0,0.0001469,2]
[333475626,1722172240678,-434.18908386,0.0001469,2]
[333475627,1722172240687,-500.0,0.0001469,2]
[333475628,1722172240697,-500.0,0.0001469,2]
[333475629,1722172240706,-500.0,0.0001469,2]
[333475630,1722172240716,-500.0,0.0001469,2]
[333475631,1722172240726,-500.0,0.0001469,2]
[333475632,1722172240735,-500.0,0.0001469,2]
[333475633,1722172240744,-500.0,0.0001469,2]
[333475634,1722172240757,-500.0,0.0001469,2]
[333475635,1722172240766,-567.30495299,0.0001469,2]
[333475636,1722172240775,-500.0,0.0001469,2]
[333475637,1722172240784,-500.0,0.0001469,2]
[333475638,1722172240794,-9638.65754911,0.00014691,2]
[333475639,1722172240803,-6998.84676533,0.00014691,2]
[333475640,1722172240813,-526.94940313,0.00014691,2]
[333475641,1722172240822,-815.82252143,0.00014691,2]
[333475642,1722172240832,-3086.48005586,0.00014691,2]
[333475643,1722172240841,-4179.8496888,0.00014691,2]
[333475644,1722172240850,-179.384597,0.00014739,2]
[333475645,1722172240859,-500.0,0.00014963,2]
[333475646,1722172240869,-500.0,0.00014963,2]
[333475647,1722172240878,-251.4499183,0.00014963,2]
[333475648,1722172240887,-477.73263684,0.00014963,2]
[333475649,1722172240896,-150.83,0.00014963,2]
[333475650,1722172240905,-500.0,0.00014963,2]
[333475651,1722172240915,-500.0,0.00014963,2]
[333475652,1722172240925,-500.0,0.00014964,2]
[333475653,1722172240934,-393.43,0.00014964,2]
[333475654,1722172240943,-192.32,0.00014964,2]
[333475655,1722172240953,-422.88,0.00014964,2]
[333475656,1722172240963,-437.48,0.00014964,2]
[333475657,1722172240972,-207.1,0.00014964,2]
[333475658,1722172240981,-500.0,0.00014964,2]
[333475659,1722172240991,-344.35,0.00014964,2]
[333475660,1722172241000,-500.0,0.00014964,2]
[333475661,1722172241010,-255.57,0.00014964,2]
[333475662,1722172241019,-375.86,0.00014964,2]
[333475663,1722172241029,-154.65203293,0.00015,2]
[333475664,1722172241038,-2846.09052378,0.00015,2]
[333475665,1722172241049,-1108.17514816,0.00015,2]
[333475666,1722172241058,-419.15440362,0.00015,2]
[333475667,1722172241069,-951.2964008,0.00015,2]
[333475668,1722172241078,-1044.33053196,0.00015,2]
[333475669,1722172241087,-492.24410655,0.000151,2]
[333475670,1722172241096,-179.384597,0.00015195,2]
[333475671,1722172241105,-500.0,0.00015237,2]
[333475672,1722172241114,-500.0,0.00015237,2]
[333475673,1722172241123,-500.0,0.00015237,2]
[333475674,1722172241133,-256.55,0.00015238,2]
[333475675,1722172241142,-500.0,0.00015238,2]
[333475676,1722172241151,-498.26001833,0.00015238,2]
[333475677,1722172241160,-500.0,0.00015511,2]
[333475678,1722172241169,-500.0,0.00015511,2]
[333475679,1722172241178,-405.13,0.00015511,2]
[333475680,1722172241187,-500.0,0.00015512,2]
[333475681,1722172241197,-50243.88879735,0.00015697,2]
[333475705,1722172246541,-21725.11551711,0.00015697,2]
[333475706,1722172246636,-18609.3593948,0.00015697,2]
[333475707,1722172924532,250.22702269,9.999e-05,2]
[333475708,1722173147517,-250.22702269,0.0001212,2]
[333475709,1722173147540,-177.497409,0.0001212,2]
[333475710,1722173147562,-166.115589,0.00013425,2]
[333475711,1722173147585,-159.171686,0.00013861,2]
[333475712,1722173147609,-159.171686,0.00014042,2]
[333475713,1722173147632,-159.171686,0.00014222,2]
[333475714,1722173147657,-159.655861,0.00014247,2]
[333475715,1722173147680,-712.5,0.00014247,2]
[333475716,1722173147703,-159.171686,0.00014403,2]
[333475717,1722173147726,-159.171686,0.00014584,2]
[333475718,1722173147748,-574.08476286,0.0001459,2]
[333475719,1722173147768,-994.52512511,0.0001469,2]
[333475720,1722173147789,-267.99213488,0.0001469,2]
[333475721,1722173147813,-500.0,0.0001469,2]
[333475722,1722173147835,-437.10378195,0.00014964,2]
[333475723,1722173147855,-312.52515218,0.00015351,2]
[333475724,1722173147876,-3537.25061813,0.00015487,2]
[333475725,1722173147899,-381.74125362,0.00015696,2]
[333475726,1722173147920,-224.3672908,0.00015696,2]
[333475728,1722173229164,-994.52512511,0.00013,2]
[333475729,1722173229190,-267.99213488,0.000137,2]
[333475730,1722173229213,-166.666666,0.00014438,2]
[333475731,1722173229234,-166.666666,0.0001493,2]
[333475732,1722173229256,-166.666666,0.00015422,2]
[333475733,1722173229277,-589.96909701,0.00015596,2]
[333475734,1722173229299,-62.2727092,0.00015696,2]
[333475735,1722173229322,-500.0,0.00015696,2]
[333475736,1722173229345,-194.46725522,0.00015697,2]
[333475737,1722173229368,-154.63660398,0.00015697,2]
[333475738,1722173229390,-300.0,0.00015705,2]
[333475739,1722173229411,-300.0,0.00015705,2]
[333475740,1722173229436,-500.0,0.00015706,2]
[333475741,1722173229456,-236.66251494,0.00015706,2]
[333475742,1722173229478,-500.0,0.00015706,2]
[333475743,1722173229500,-500.0,0.00015706,2]
[333475744,1722173229522,-500.0,0.00015706,2]
[333475745,1722173229543,-431.08729368,0.00015706,2]
[333475746,1722173229564,-165.1127021,0.00015707,5]
[333475747,1722173229584,-2138.33412176,0.00015707,2]
[333475748,1722173229620,-742.36928625,0.00015707,2]
[333475749,1722173233102,-1248.37461124,0.00015707,2]
[333475750,1722173233125,-637.48382113,0.00015707,2]
[333475751,1722173249085,-418.113077,0.00015607,2]
[333475752,1722173253101,-84.21109052,0.00015607,2]
[333475753,1722173253123,-744.91185181,0.00015707,2]
[333475754,1722173253147,-4017.8371628,0.00015707,2]
[333475755,1722173253173,-1171.98715204,0.00015707,2]
[333475756,1722173253195,-1162.07321644,0.00015707,2]
[333475757,1722173253219,-4167.6163973,0.00015707,2]
[333475759,1722173358105,-396.7795019,0.00010959,2]
[333475761,1722173371138,-2.4004981,0.00010959,2]
[333475762,1722173393450,164.24967346,0.00010959,2]
[333475763,1722173410437,154.88296144,0.00010959,2]
[333476099,1722173440786,-1318.84503557,0.00014076,2]
[333476120,1722173444032,-3737.35704453,0.00014076,2]
[333476121,1722173444042,-159.655861,0.00014247,2]
[333476122,1722173444052,-1309.0841474,0.00014248,2]
[333476123,1722173444064,-439.53364658,0.00014619,2]
[333476124,1722173444074,-166.460108,0.00014634,2]
[333476127,1722173444083,-6432.83516952,0.0001469,2]
[333476155,1722173731596,2000.0,0.0002334,120]
[333476157,1722173763558,167.79,0.0001,2]
[333476158,1722174148609,200.0,0.0001,2]
[333476159,1722174270962,242.62389671,9.999e-05,2]
[333476160,1722174302952,273.37336231,9.9e-05,2]
[333476161,1722174311671,273.37336231,9.9e-05,2]
[333476162,1722174351151,-250.22702269,0.0001212,2]
[333476163,1722174351173,-154.66746495,0.0001212,2]
[333476164,1722174351193,-249.67334773,0.0001212,2]
[333476165,1722174351215,-154.63660398,0.0001212,2]
[333476166,1722174351236,-154.95075127,0.0001212,2]
[333476167,1722174351256,-3782.59755445,0.0001212,2]
[333476168,1722174351277,-180.32453325,0.0001212,2]
[333476169,1722174351299,-154.63660398,0.0001212,2]
[333476170,1722174351320,-182.9976024,0.0001212,2]
[333476171,1722174351341,-165.863969,0.00013425,2]
[333476172,1722174351363,-166.666666,0.00013518,2]
[333476173,1722174351385,-166.666666,0.00013887,2]
[333476174,1722174351407,-161.23736,0.00014166,2]
[333476175,1722174351429,-161.23736,0.00014205,2]
[333476176,1722174351452,-161.23736,0.00014244,2]
[333476177,1722174351474,-676.875,0.00014247,2]
[333476178,1722174351495,-166.666666,0.00014255,2]
[333476179,1722174351524,-161.23736,0.00014283,2]
[333476180,1722174351552,-161.23736,0.00014322,2]
[333476181,1722174351581,-161.23736,0.00014361,2]
[333476182,1722174351608,-161.23736,0.00014399,2]
[333476183,1722174351632,-161.23736,0.00014438,2]
[333476184,1722174351656,-161.23736,0.00014477,2]
[333476185,1722174351681,-161.23736,0.00014516,2]
[333476186,1722174351705,-161.23736,0.00014555,2]
[333476187,1722174351730,-161.23736,0.00014594,2]
[333476188,1722174351754,-166.666666,0.00014624,2]
[333476189,1722174351780,-161.23736,0.00014633,2]
[333476190,1722174351807,-161.23736,0.00014671,2]
[333476191,1722174351833,-300.0,0.00014688,2]
[333476192,1722174351859,-500.0,0.00014689,2]
[333476193,1722174351888,-500.0,0.00014689,2]
[333476194,1722174351915,-351.76110557,0.00014689,2]
[333476195,1722174351939,-500.0,0.00014689,2]
[333476196,1722174351965,-503.15701026,0.00014689,2]
[333476197,1722174351990,-332.07879351,0.00014689,2]
[333476198,1722174352015,-500.0,0.00014689,2]
[333476199,1722174352039,-30000.0,0.0001469,2]
[333476200,1722174352065,-161.23736,0.0001471,2]
[333476201,1722174352090,-161.23736,0.00014749,2]
[333476202,1722174352115,-161.23736,0.00014788,2]
[333476203,1722174352142,-161.23736,0.00014827,2]
[333476204,1722174352167,-161.23736,0.00014866,2]
[333476205,1722174352192,-161.23736,0.00014905,2]
[333476206,1722174352216,-166.666666,0.00014992,2]
[333476207,1722174352242,-500.0,0.00014999,2]
[333476208,1722174352269,-500.0,0.00014999,2]
[333476209,1722174352296,-500.0,0.00014999,2]
[333476210,1722174352322,-500.0,0.00014999,2]
[333476211,1722174352350,-500.0,0.00014999,2]
[333476212,1722174352375,-541.17,0.00014999,2]
[333476213,1722174352400,-500.0,0.00014999,2]
[333476214,1722174352424,-500.0,0.00014999,2]
[333476215,1722174352449,-500.0,0.00014999,2]
[333476216,1722174352471,-500.0,0.00014999,2]
[333476217,1722174352495,-503.94,0.00014999,2]
[333476218,1722174352520,-500.0,0.00014999,2]
[333476219,1722174352546,-646.21,0.00014999,2]
[333476220,1722174352569,-4235.42199413,0.00015,2]
[333476221,1722174352595,-637.66,0.00015273,2]
[333476222,1722174352620,-500.0,0.00015273,2]
[333476223,1722174352643,-500.0,0.00015273,2]
[333476224,1722174352667,-500.0,0.00015273,2]
[333476225,1722174352695,-500.0,0.00015273,2]
[333476226,1722174352725,-370.03437856,0.00015273,2]
[333476227,1722174352750,-166.666666,0.00015361,2]
[333476228,1722174352774,-3537.25061814,0.0001539,2]
[333476229,1722174352799,-200.0,0.000154,2]
[333476230,1722174352824,-152.61196378,0.00015498,2]
[333476231,1722174352849,-500.0,0.00015547,2]
[333476232,1722174352876,-500.0,0.00015547,2]
[333476233,1722174352900,-500.0,0.00015547,2]
[333476234,1722174352925,-500.0,0.00015547,2]
[333476235,1722174352948,-367.60913684,0.00015582,2]
[333476236,1722174353105,-7570.63380809,0.00015697,2]
[333476237,1722174360630,250.22702269,9.999e-05,2]
[333476238,1722174439131,-3199.34791031,0.00014041,2]
[333476239,1722174445092,-417.09013605,0.00014041,2]
[333476240,1722174445133,-586.65978055,0.00014041,2]
[333476241,1722174449111,-8666.681512,0.00014041,2]
[333476242,1722174490057,273.37336231,9.9e-05,2]
[333476265,1722174631922,-165.547718,0.00013425,2]
[333476267,1722174631932,-300.0,0.0001404,2]
[333476269,1722174631942,-19.28311182,0.00014041,2]
[333476271,1722174631957,-473.83415027,0.00014041,2]
[333476278,1722174632015,-1000.0,0.00014041,2]
[333476280,1722174632028,-15637.103399,0.00014041,2]
[333476282,1722174632038,-194.46725522,0.00014041,2]
[333476284,1722174632047,-159.655861,0.00014247,2]
[333476286,1722174632057,-4632.3286726,0.00014649,2]
[333476288,1722174632068,-500.0,0.00014999,2]
[333476290,1722174632078,-500.0,0.00014999,2]
[333476291,1722174632087,-500.0,0.00014999,2]
[333476292,1722174632097,-500.0,0.00014999,2]
[333476293,1722174632107,-500.0,0.00014999,2]
[333476294,1722174632116,-500.0,0.00014999,2]
[333476295,1722174632126,-500.0,0.00014999,2]
[333476296,1722174632135,-500.0,0.00015273,2]
[333476297,1722174632145,-500.0,0.00015273,2]
[333476298,1722174632154,-583.44481218,0.00015273,2]
[333476299,1722174632166,-6.81518782,0.00015273,2]
[333476300,1722174632175,-500.0,0.00015273,2]
[333476301,1722174632184,-143.68481219,0.00015447,2]
[333476381,1722174640141,-240.90712855,0.00015447,2]
[333476382,1722174640151,-500.0,0.00015547,2]
[333476383,1722174640161,-155.0953226,0.00015582,2]
[333476384,1722174640170,-500.0,0.00015696,2]
[333476385,1722174640182,-500.0,0.00015696,2]
[333476386,1722174640193,-165.66376046,0.00015696,2]
[333476387,1722174640202,-500.0,0.00015696,2]
[333476388,1722174640211,-446.2327739,0.00015696,2]
[333476389,1722174640222,-360.55101449,0.00015697,2]
[333476413,1722174643774,-7953.52627317,0.00015697,2]
[333476422,1722174646076,-11584.10033444,0.00015697,2]
[333476423,1722174646089,-5273.5548979,0.00015697,2]
[333476424,1722174646099,-947.0,0.000157,2]
[333476425,1722174646110,-250.05,0.00015706,2]
[333476426,1722174646120,-500.0,0.00015706,2]
[333476427,1722174646129,-500.0,0.00015706,2]
[333476428,1722174646139,-403.47948066,0.00015706,2]
[333476429,1722174646152,-96.52051934,0.00015706,2]
[333476430,1722174646163,-500.0,0.00015706,2]
[333476431,1722174646172,-500.0,0.00015706,2]
[333476432,1722174646182,-1415.24043855,0.00015707,2]
[333476433,1722174646215,-4283.43208511,0.00015707,2]
[333476437,1722175303692,250.22702269,9.999e-05,2]
[333476438,1722175458253,240.1543788,0.0001,2]
[333476439,1722175479662,154.65203293,9.999e-05,2]
[333476440,1722175490529,182.9976024,9.999e-05,2]
[333476441,1722175596527,182.9976024,9.999e-05,2]
[333476442,1722175635100,-250.0,0.00012584,2]
[333476443,1722175635124,-182.237863,0.0001259,2]
[333476444,1722175635148,-160.055388,0.00012593,2]
[333476445,1722175635169,-482.7372859,0.00012627,2]
[333476446,1722175635191,-166.666666,0.0001263,2]
[333476447,1722175635215,-182.237863,0.00012722,2]
[333476448,1722175635239,-182.237863,0.00012853,2]
[333476449,1722175635260,-166.666666,0.00012974,2]
[333476450,1722175635282,-182.237863,0.00012984,2]
[333476451,1722175635304,-182.237863,0.00013115,2]
[333476452,1722175635326,-182.237863,0.00013246,2]
[333476453,1722175635351,-166.666666,0.00013319,2]
[333476454,1722175635374,-165.266606,0.00013425,2]
[333476455,1722175635395,-166.666666,0.00013663,2]
[333476456,1722175635417,-194.46725522,0.00013699,2]
[333476457,1722175635438,-166.666666,0.00014007,2]
[333476458,1722175635459,-1082.10687258,0.00014038,2]
[333476459,1722175643133,-267.1771719,0.00014038,2]
[333476460,1722175643159,-300.0,0.0001404,2]
[333476461,1722175643185,-198.28679211,0.00014041,2]
[333476462,1722175646094,-300.0,0.00014041,2]
[333476463,1722175647115,-1644.19078678,0.00014041,2]
[333476464,1722175648099,-960.803161,0.00014041,2]
[333476465,1722175754098,-154.65203293,0.00013425,2]
[333476466,1722175772105,-10.70890507,0.00013425,2]
[333476467,1722175772130,-19148.07242493,0.00014041,2]
[333476508,1722175832202,-166.666666,0.00013587,2]
[333476510,1722175832212,-166.666666,0.00013957,2]
[333476512,1722175832222,-7748.64683518,0.00014041,2]
[333476514,1722175832232,-247.94883022,0.00014041,2]
[333476517,1722175832241,-750.0,0.00014247,2]
[333476520,1722175832256,-166.666666,0.00014328,2]
[333476523,1722175832266,-1091.03770757,0.0001469,2]
[333476525,1722175832275,-526.94940313,0.0001469,2]
[333476527,1722175832285,-815.82252143,0.0001469,2]
[333476529,1722175832295,-166.666666,0.00014698,2]
[333476531,1722175832304,-336.51794813,0.00014897,2]
[333476533,1722175832313,-500.0,0.00014997,2]
[333476535,1722175832322,-500.0,0.00014997,2]
[333476536,1722175832331,-500.0,0.00014997,2]
[333476538,1722175832340,-500.0,0.00014997,2]
[333476541,1722175832350,-500.0,0.00014997,2]
[333476543,1722175832359,-500.0,0.00014997,2]
[333476545,1722175832368,-500.0,0.00014997,2]
[333476546,1722175832377,-500.0,0.00014997,2]
[333476548,1722175832387,-500.0,0.00014997,2]
[333476550,1722175832397,-500.0,0.00014997,2]
[333476552,1722175832406,-500.0,0.00014997,2]
[333476554,1722175832415,-500.0,0.00014997,2]
[333476556,1722175832424,-500.0,0.00014997,2]
[333476558,1722175832434,-500.0,0.00014997,2]
[333476560,1722175832443,-500.0,0.00014997,2]
[333476562,1722175832453,-500.0,0.00014997,2]
[333476564,1722175832463,-500.0,0.00014997,2]
[333476566,1722175832472,-500.0,0.00014997,2]
[333476568,1722175832481,-500.0,0.00014997,2]
[333476570,1722175832491,-593.76,0.00014997,2]
[333476572,1722175832502,-500.0,0.00014998,2]
[333476574,1722175832511,-500.0,0.00014998,2]
[333476576,1722175832520,-500.0,0.00014998,2]
[333476578,1722175832529,-500.0,0.00014998,2]
[333476580,1722175832540,-500.0,0.00014998,2]
[333476582,1722175832549,-500.0,0.00014998,2]
[333476584,1722175832559,-500.0,0.00014998,2]
[333476586,1722175832567,-500.0,0.00014998,2]
[333476588,1722175832578,-509.31,0.00014998,2]
[333476590,1722175832588,-572.0,0.00014998,2]
[333476592,1722175832597,-500.0,0.00014998,2]
[333476594,1722175832608,-500.0,0.00014998,2]
[333476596,1722175832618,-500.0,0.00014998,2]
[333476598,1722175832627,-500.0,0.00014998,2]
[333476600,1722175832636,-296.36491369,0.00014998,2]
[333476603,1722175832647,-374.38580077,0.00014998,2]
[333476605,1722175832657,-500.0,0.00014998,2]
[333476607,1722175832667,-162.36294173,0.00014998,2]
[333476609,1722175832677,-500.0,0.00014998,2]
[333476611,1722175832687,-500.0,0.00014998,2]
[333476613,1722175832696,-500.0,0.00014998,2]
[333476615,1722175832705,-500.0,0.00014998,2]
[333476617,1722175832715,-500.0,0.00014998,2]
[333476619,1722175832724,-500.0,0.00014998,2]
[333476621,1722175832733,-500.0,0.00014998,2]
[333476623,1722175832745,-500.0,0.00014998,2]
[333476625,1722175832755,-500.0,0.00014998,2]
[333476627,1722175832765,-500.0,0.00014999,2]
[333476629,1722175832779,-500.0,0.00014999,2]
[333476631,1722175832789,-500.0,0.00014999,2]
[333476633,1722175832799,-500.0,0.00014999,2]
[333476636,1722175832810,-500.0,0.00014999,2]
[333476638,1722175832823,-500.0,0.00014999,2]
[333476640,1722175832835,-500.0,0.00014999,2]
[333476642,1722175832849,-187.92085274,0.00014999,2]
[333476644,1722175832859,-500.0,0.00014999,2]
[333476646,1722175832869,-507.91760424,0.00014999,2]
[333476648,1722175832878,-500.0,0.00014999,2]
[333476650,1722175832887,-500.0,0.00014999,2]
[333476652,1722175832896,-500.0,0.00014999,2]
[333476654,1722175832906,-500.0,0.00014999,2]
[333476657,1722175832916,-500.0,0.00014999,2]
[333476659,1722175832927,-500.0,0.00014999,2]
[333476661,1722175832938,-500.0,0.00014999,2]
[333476663,1722175832951,-552.9,0.00014999,2]
[333476665,1722175832961,-500.0,0.00014999,2]
[333476667,1722175832970,-500.0,0.00014999,2]
[333476669,1722175832980,-500.0,0.00014999,2]
[333476671,1722175832990,-500.0,0.00014999,2]
[333476673,1722175833001,-500.0,0.00014999,2]
[333476675,1722175833010,-500.0,0.00014999,2]
[333476677,1722175833019,-500.0,0.00014999,2]
[333476679,1722175833029,-500.0,0.00014999,2]
[333476681,1722175833038,-500.0,0.00014999,2]
[333476683,1722175833047,-500.0,0.00014999,2]
[333476685,1722175833057,-500.0,0.00014999,2]
[333476688,1722175833067,-500.0,0.00014999,2]
[333476690,1722175833076,-500.0,0.00014999,2]
[333476692,1722175833085,-500.0,0.00014999,2]
[333476693,1722175833095,-500.0,0.00014999,2]
[333476695,1722175833104,-500.0,0.00014999,2]
[333476696,1722175833113,-500.0,0.00014999,2]
[333476698,1722175833122,-500.0,0.00014999,2]
[333476700,1722175833132,-500.0,0.00014999,2]
[333476701,1722175833141,-500.0,0.00014999,2]
[333476702,1722175833151,-500.0,0.00014999,2]
[333476703,1722175833161,-500.0,0.00014999,2]
[333476704,1722175833170,-502.98,0.00014999,2]
[333476705,1722175833180,-500.0,0.00014999,2]
[333476706,1722175833190,-500.0,0.00014999,2]
[333476707,1722175833200,-500.0,0.00014999,2]
[333476708,1722175833210,-500.0,0.00014999,2]
[333476709,1722175833220,-500.0,0.00014999,2]
[333476710,1722175833230,-500.0,0.00014999,2]
[333476711,1722175833240,-500.0,0.00014999,2]
[333476712,1722175833251,-500.0,0.00014999,2]
[333476713,1722175833261,-500.0,0.00014999,2]
[333476714,1722175833271,-151.0,0.00014999,2]
[333476715,1722175833281,-151.0,0.00014999,2]
[333476716,1722175833292,-500.0,0.00014999,2]
[333476717,1722175833302,-2846.09052378,0.00015,2]
[333476718,1722175833311,-1108.17514816,0.00015,2]
[333476719,1722175833322,-951.2964008,0.00015,2]
[333476720,1722175833332,-166.666666,0.00015069,2]
[333476721,1722175833342,-200.0,0.00015075,2]
[333476722,1722175833351,-1007.25629816,0.00015263,2]
[333476723,1722175833360,-500.0,0.00015271,2]
[333476724,1722175833370,-500.0,0.00015271,2]
[333476725,1722175833381,-537.24,0.00015271,2]
[333476726,1722175833390,-500.0,0.00015271,2]
[333476727,1722175833400,-500.0,0.00015271,2]
[333476728,1722175833410,-500.0,0.00015271,2]
[333476729,1722175833420,-500.0,0.00015271,2]
[333476730,1722175833431,-500.0,0.00015271,2]
[333476731,1722175833443,-500.0,0.00015271,2]
[333476732,1722175833453,-500.0,0.00015271,2]
[333476733,1722175833462,-500.0,0.00015271,2]
[333476734,1722175833472,-500.0,0.00015271,2]
[333476735,1722175833482,-500.0,0.00015271,2]
[333476736,1722175833491,-500.0,0.00015271,2]
[333476737,1722175833502,-500.0,0.00015271,2]
[333476738,1722175833511,-500.0,0.00015271,2]
[333476739,1722175833520,-500.0,0.00015271,2]
[333476740,1722175833531,-500.0,0.00015271,2]
[333476741,1722175833540,-245.72,0.00015271,2]
[333476742,1722175833550,-308.69,0.00015272,2]
[333476743,1722175833560,-500.0,0.00015272,2]
[333476744,1722175833570,-500.0,0.00015272,2]
[333476745,1722175833580,-544.83,0.00015272,2]
[333476746,1722175833589,-500.0,0.00015272,2]
[333476747,1722175833600,-152.52,0.00015272,2]
[333476748,1722175833609,-484.06,0.00015272,2]
[333476749,1722175833619,-500.0,0.00015272,2]
[333476750,1722175833628,-196.95,0.00015272,2]
[333476751,1722175833638,-500.0,0.00015272,2]
[333476752,1722175833647,-245.24,0.00015272,2]
[333476753,1722175833657,-500.0,0.00015273,2]
[333476754,1722175833666,-500.0,0.00015273,2]
[333476755,1722175833676,-500.0,0.00015273,2]
[333476756,1722175833686,-271.35095789,0.00015273,2]
[333476757,1722175833696,-213.5,0.00015273,2]
[333476758,1722175833707,-206.31,0.00015273,2]
[333476759,1722175833719,-248.68,0.00015273,2]
[333476760,1722175833730,-369.78622825,0.00015273,2]
[333476761,1722175833740,-637.8,0.00015273,2]
[333476762,1722175833752,-193.53,0.00015273,2]
[333476763,1722175833762,-500.0,0.00015273,2]